Cogmind - Beta 11 X7 @@@ ROGUE MODE // 2021.10.03 @ 11:41:59 Player: Stryker Result: Self-destructed Performance ------------- Evolutions (7) 3500 Regions Visited (20) 4000 Robots Destroyed (189) 945 Value Destroyed (7829) 7829 Prototype IDs (37) 740 Alien Tech Used (1) 200 Bonus (2795) 2795 TOTAL SCORE: 20009 Bonus ------- High Alert Combat Kills 111 Follower Combat Kills 1035 Met Data Miner 300 Met Warlord at Base 500 MAIN.C Attacked Warlord 500 Warlord Defense Kill 424 Friendly Fire -75 Cogmind --------- Core Integrity 1142/1300 Matter 89/300 Energy 99/310 System Corruption 8% Temperature Warm (144) Movement Treading (267) Ox1 Location -3/Research Parts ------- > --- POWER (1) -------- Reinforced Fission Core > --- PROPULSION (6) --- Biometal Medium Treads Improved Heavy Siege Treads > --- UTILITY (11) ----- Advanced Heat Sink Huge Storage Unit Machine Analyzer Advanced Signal Interpreter Improved Terrain Scan Processor 0b10 Decoder Chip [Generic] Improved Target Analyzer Matter Filter EM Shield Ghost Barrier > --- WEAPON (4) ------- Coil Gun Hardcell Cannon > --- INVENTORY (25) --- Experimental Energy Well (600) Matter Compressor (250) Spectral Analyzer Advanced Sensor Array Experimental Sensor Array Advanced Terrain Scanner Advanced Weapon Cycler Advanced ECM Suite Improved Phase Shifter Experimental Cloaking Device Force Field Improved Component Analysis Suite System Backup Module Heavy Phase Cannon KE Penetrator Improved KE Penetrator Power Maul Peak State ------------ > --- POWER ------------ Quantum Reactor > --- PROPULSION ------- Medium Treads Medium Treads Armored Medium Treads Advanced Medium Treads Centrium Heavy Treads > --- UTILITY ---------- Advanced Heat Sink Huge Storage Unit Machine Analyzer Experimental Sensor Array Advanced Signal Interpreter Advanced Terrain Scanner Improved Terrain Scan Processor 0b10 Decoder Chip [Generic] Improved Target Analyzer Experimental Cloaking Device Ghost Barrier > --- WEAPON ----------- Wave Gun Heavy Phase Cannon KE Penetrator Railgun > --- INVENTORY -------- Reinforced Fission Core Medium Treads Huge Storage Unit Experimental Energy Well Matter Compressor Spectral Analyzer Advanced Sensor Array Weapon Cycler Advanced ECM Suite Improved Phase Shifter Improved Medium Armor Plating Improved Medium Armor Plating Centrium Medium Armor Plating EM Shield Improved Component Analysis Suite System Backup Module Heavy Beamcaster Coil Gun Improved KE Penetrator Improved KE Penetrator Hardcell Cannon Power Maul [Rating: 145] Favorites ----------- Power Enhanced Nuclear Core Engine Heavy Ion Engine Power Core Enhanced Nuclear Core Reactor Antimatter Reactor Propulsion Light Treads Treads Light Treads Leg Aluminum Leg Wheel Armored Wheel Utility Huge Storage Unit Device Advanced Terrain Scanner Storage Huge Storage Unit Processor Terrain Scan Processor Hackware Ghost Barrier Protection Powered Armor Weapon Coil Gun Energy Gun High-powered Shock Rifle Energy Cannon Neutron Cannon Ballistic Gun Coil Gun Ballistic Cannon Bore Cannon Launcher Improved Proton Missile Launcher Impact Weapon Heavy Flail Slashing Weapon Phasing Sabre Build | -11 -10 -9 -8 -7 -6 -6 -6 -6 -5 -5 -5 -5 -5 -4 -4 -4 -4 -4 -4 -3 ------- Run | Scr Mat Mat Mat Fac Fac Low Low Dat Pro Fac Upp Upp War Pro Fac Ext Cet Arc Hub Res Slots Evolved 14 | . . 2 2 2 2 . . . . 2 . . . . 2 . . . . 2 Power . | . . . . . . . . . . . . . . . . . . . . . Propulsion 3 | . . 1 1 . . . . . . 1 . . . . . . . . . . Utility 9 | . . 1 1 1 2 . . . . 1 . . . . 1 . . . . 2 Weapon 2 | . . . . 1 . . . . . . . . . . 1 . . . . . Parts Attached 368 | 1 11 16 31 16 29 16 23 2 3 26 6 12 11 29 20 48 5 3 16 44 Power 14 | . 1 1 2 2 . . . . . . . . . 1 3 1 1 . 1 1 Engine 4 | . 1 1 1 . . . . . . . . . . . 1 . . . . . Core 7 | . . . 1 2 . . . . . . . . . . 2 . 1 . . 1 Reactor 3 | . . . . . . . . . . . . . . 1 . 1 . . 1 . Propulsion 47 | . 4 6 10 1 2 1 . . . 3 1 . 1 5 . 6 1 1 1 4 Treads 35 | . 2 4 5 1 2 1 . . . 2 1 . 1 3 . 6 1 1 1 4 Leg . | . . . . . . . . . . . . . . . . . . . . . Wheel 12 | . 2 2 5 . . . . . . 1 . . . 2 . . . . . . Hover . | . . . . . . . . . . . . . . . . . . . . . Flight . | . . . . . . . . . . . . . . . . . . . . . Utility 201 | 1 3 4 8 10 19 9 15 2 2 15 5 9 7 17 11 26 1 1 11 25 Device 130 | 1 2 . 1 7 11 4 12 1 2 7 4 6 2 15 10 21 . . 8 16 Storage 7 | . 1 1 1 . . . . . . 1 . . 1 . . 1 . . . 1 Processor 7 | . . . . 2 . . . . . 2 . . . . 1 1 . . . 1 Hackware 1 | . . . . . . . . . . . . . . . . . . . . 1 Protection 56 | . . 3 6 1 8 5 3 1 . 5 1 3 4 2 . 3 1 1 3 6 Artifact . | . . . . . . . . . . . . . . . . . . . . . Weapon 106 | . 3 5 11 3 8 6 8 . 1 8 . 3 3 6 6 15 2 1 3 14 Energy Gun 16 | . 2 2 2 . 2 . 1 . . . . 1 . . 1 4 . . . 1 Energy Cannon 8 | . . . 2 . . . . . . 2 . . 1 1 1 . . . . 1 Ballistic Gun 50 | . 1 2 5 3 3 4 3 . 1 3 . 1 1 2 3 7 2 1 1 7 Ballistic Cannon 7 | . . . . . . . . . . . . . 1 1 . 3 . . 1 1 Launcher 7 | . . 1 2 . . . 2 . . . . 1 . . . 1 . . . . Special Weapon . | . . . . . . . . . . . . . . . . . . . . . Impact Weapon 13 | . . . . . 3 2 2 . . 1 . . . . . . . . 1 4 Slashing Weapon 5 | . . . . . . . . . . 2 . . . 2 1 . . . . . Piercing Weapon . | . . . . . . . . . . . . . . . . . . . . . Special Melee Weapon . | . . . . . . . . . . . . . . . . . . . . . Unidentified Prototypes 10 | . . . 1 1 . 1 . . . . . . 4 . . . 3 . . . Corrupted Parts 4 | . . . 2 . . . . . . . . . . . . . . . 2 . System Corruption 9 | . . . 3 . . . . . . . . . . . . . . . 6 . Parts Lost 56 | . 1 2 6 1 . . 1 . . . . 2 . 10 3 8 3 1 2 16 Power 5 | . . . 1 . . . . . . . . . . . 2 1 . . . 1 Propulsion 20 | . . 1 1 . . . . . . . . . . 4 . 3 2 1 1 7 Utility 16 | . . . 2 1 . . 1 . . . . 1 . 4 . 2 . . 1 4 Weapon 15 | . 1 1 2 . . . . . . . . 1 . 2 1 2 1 . . 4 Highest Loss Streak 12 | . 1 1 2 1 . . 1 . . . . 2 . 6 2 5 3 1 2 12 Average Slot Usage (%) 98 | . 99 99 95 99 99 99 100 100 100 99 100 100 100 99 97 94 89 89 93 93 Engine 2 | . 14 11 8 . . . . . . . . . . . . . . . . . Core 3 | . . . . 7 6 6 6 6 6 5 5 5 5 1 . 2 3 5 4 . Treads 17 | . 12 11 18 15 13 16 18 18 18 16 16 16 16 16 15 27 25 24 25 21 Wheel 12 | . 13 21 17 15 13 12 12 12 12 16 16 16 16 15 15 1 . . . . Device 11 | . 14 11 9 8 15 11 11 12 11 9 10 10 10 14 20 10 7 5 14 13 Storage 6 | . 14 11 9 7 6 6 6 6 6 5 5 5 7 5 5 5 5 5 5 4 Processor 12 | . . . . 7 13 12 12 12 12 15 16 16 16 16 20 20 20 20 20 21 Protection 9 | . . 11 14 13 10 13 12 12 12 12 11 11 9 5 . 4 7 10 4 4 Energy Gun 5 | . 23 11 3 7 9 5 4 6 6 2 . . . . 4 7 5 5 . 2 Energy Cannon 1 | . . . 5 . . . . . . 1 5 . 4 4 2 . . . . . Ballistic Gun 9 | . 4 10 8 15 5 9 12 12 12 9 11 12 6 9 7 8 13 15 15 10 Naked Turns . | . . . . . . . . . . . . . . . . . . . . . Heaviest Build 151 | 15 54 100 113 105 135 137 133 129 129 133 131 134 139 125 131 146 150 151 146 143 Greatest Support 195 | 20 20 26 26 24 24 24 24 24 24 36 36 36 36 40 40 177 167 195 195 193 Greatest Overweight (x) 7 | . 5 5 7 4 5 5 5 5 5 3 3 3 3 3 3 3 1 . . . Average Overweight (x) 3 | . 2 3 3 4 4 4 4 5 5 3 3 3 3 2 2 . . . . . Largest Inventory Capacity 25 | 8 20 25 25 25 25 25 25 25 25 25 25 25 25 25 25 25 25 25 25 25 Average Capacity 24 | 8 16 24 25 25 25 25 25 25 25 25 25 25 25 25 25 25 25 25 25 25 Most Carried 25 | 8 20 25 25 25 25 25 25 24 25 25 25 25 25 25 25 25 25 25 25 25 Average Carried 23 | 6 14 23 24 24 24 24 24 24 24 24 24 24 24 23 23 24 24 24 22 23 Final Capacity 25 | 8 20 25 25 25 25 25 25 25 25 25 25 25 25 25 25 25 25 25 25 25 Final Carried 25 | 8 20 25 25 25 25 24 24 24 25 25 25 25 25 19 24 25 25 25 22 17 Class Distribution -------------------- 33% | Mutant 14% | Skirmisher 12% | Assassin 10% | Scavenger-Tank 7% | Scavenger-Assassin 7% | Scavenger-Mutant 5% | Scavenger-Skirmisher 3% | Commander-Skirmisher 3% | Tank Dominant Class ---------------- Mutant | -10/Materials Mutant | -9/Materials Mutant | -8/Materials Scavenger-Tank | -7/Factory Assassin | -6/Factory Assassin | -6/Lower Caves Skirmisher | -6/Lower Caves Skirmisher | -6/Data Miner Skirmisher | -5/Proximity Caves Assassin | -5/Factory Mutant | -5/Upper Caves Mutant | -5/Upper Caves Mutant | -5/Warlord Scavenger-Mutant | -4/Proximity Caves Assassin | -4/Factory Commander-Skirmisher | -4/Extension Scavenger-Tank | -4/Cetus Scavenger-Tank | -4/Archives Scavenger-Skirmisher | -4/Hub_04(d) Scavenger-Assassin | -3/Research Resources | -11 -10 -9 -8 -7 -6 -6 -6 -6 -5 -5 -5 -5 -5 -4 -4 -4 -4 -4 -4 -3 ----------- Run | Scr Mat Mat Mat Fac Fac Low Low Dat Pro Fac Upp Upp War Pro Fac Ext Cet Arc Hub Res Matter Collected 7936 | 210 335 305 472 407 354 335 360 . 86 439 250 326 240 420 323 1277 171 167 701 758 Remotely . | . . . . . . . . . . . . . . . . . . . . . Salvage Created 9828 | 104 437 887 1409 794 336 197 534 . 101 497 55 270 190 377 261 1331 188 80 437 1343 Parts 480 | 6 31 80 73 36 10 3 15 . 5 17 . 12 9 15 18 62 5 2 23 58 Haulers Intercepted 7 | . . 2 3 1 . . . . . . . . . . . . . . 1 . Recyclers Shooed 8 | . 1 . 1 . 1 . . . . 1 . . . . 1 . . . 1 2 Parts Field Recycled . | . . . . . . . . . . . . . . . . . . . . . Retrieved Matter . | . . . . . . . . . . . . . . . . . . . . . Parts Self-Destructed 120 | . . . . . . 2 4 . 4 . . 8 89 13 . . . . . . Prevented 28 | . . . . . . . 11 . . . . 5 12 . . . . . . . Kills | -11 -10 -9 -8 -7 -6 -6 -6 -6 -5 -5 -5 -5 -5 -4 -4 -4 -4 -4 -4 -3 ------- Run | Scr Mat Mat Mat Fac Fac Low Low Dat Pro Fac Upp Upp War Pro Fac Ext Cet Arc Hub Res Combat Hostiles Destroyed 134 | . 8 18 21 12 1 1 8 . 2 3 . 4 4 6 6 15 3 1 5 16 Melee 2 | . . . . . . . . . . . . . . . 2 . . . . . Guns 106 | . 7 17 13 11 1 1 5 . 2 3 . 3 3 2 4 10 3 1 4 16 Cannons 14 | . . . 4 . . . . . . . . . . 4 . 5 . . 1 . AOE 9 | . 1 1 3 1 . . 2 . . . . . 1 . . . . . . . Classes Destroyed 17 | 2 4 5 . . 1 . . . 1 . . 1 1 . . 1 . . . 1 Worker 8 | . . 1 3 . . . . . . . . . . . . 2 . . . 2 Builder 10 | . . 1 4 . . . . . . . . . . . 1 2 . . 1 1 Tunneler 4 | 1 . 1 . . . . . . . . . . . . 1 1 . . . . Hauler 7 | . . 2 3 1 . . . . . . . . . . . . . . 1 . Recycler 11 | 1 1 1 . 1 2 . . . . 2 . . . . . 1 . . . 2 Operator 3 | . 1 . 1 . . . . . . . . . . . . 1 . . . . Watcher 12 | . 3 3 3 1 . . . . . . . . . . . 1 . . 1 . Swarmer 23 | . 3 9 3 . . . 1 . . . . . . . 4 . . . . 3 Saboteur 1 | . . . . . . . . . . . . . 1 . . . . . . . Grunt 47 | . 5 2 14 11 . . 4 . . . . . 1 3 . 2 . . 3 2 Brawler 4 | . . 1 1 . . . 2 . . . . . . . . . . . . . Duelist 3 | . . . . . . . . . . . . 2 . 1 . . . . . . Sentry 23 | . . 6 3 1 . . 1 . . 1 . 1 . . . 8 . 1 . 1 Specialist 2 | . . . . . . . . . . . . . . . . . . . . 2 Hunter 11 | . . . . . . . . . 2 . . 1 1 2 . 1 2 . 2 . Programmer 15 | . . . . . 1 1 . . . 2 . . 1 . 2 . . . . 8 Behemoth 2 | . . . . . . . . . . . . . . . . 2 . . . . Cetus Guard 1 | . . . . . . . . . . . . . . . . . 1 . . . Thug 1 | . . . . . . . . . . . . . . . . 1 . . . . Guerrilla 1 | . . . . . . . . . . . . . . . . 1 . . . . Best Kill Streak 8 | 2 4 4 8 6 1 1 5 . 2 2 . 3 3 3 4 5 1 1 5 7 Combat Bots Only 7 | . 4 3 5 5 1 1 5 . 2 2 . 3 3 3 4 4 1 1 5 7 Max Kills in Single Turn 4 | 1 2 2 4 2 1 1 1 . 1 1 . 1 2 1 2 3 1 1 3 2 Gunslinging 1 | . 1 . . . . . . . . . . . . . 1 . . . . 1 Exploded 2 | . 1 1 2 1 . . 1 . . . . . 1 . . . . . . . Melee 1 | . . . . . . . . . . . . . . . 1 . . . . . Uniques/NPCs Destroyed . | . . . . . . . . . . . . . . . . . . . . . Combat | -11 -10 -9 -8 -7 -6 -6 -6 -6 -5 -5 -5 -5 -5 -4 -4 -4 -4 -4 -4 -3 -------- Run | Scr Mat Mat Mat Fac Fac Low Low Dat Pro Fac Upp Upp War Pro Fac Ext Cet Arc Hub Res Damage Taken 16431 | . 341 555 1497 727 109 152 311 . 229 209 . 857 352 2200 449 2847 605 409 1805 2777 Core 1239 | . 73 66 184 98 . 14 5 . . . . 40 36 257 56 158 23 . 71 158 Absorbed by Shields 853 | . . . . . . . . . . . . . 311 . 17 112 . . . 413 Reduced by Siege Mode 201 | . . . . . . . . . . . . . . . . . . 8 74 119 Core Remaining (%) 80 | 100 70 83 66 86 . . . . 97 . . . . 66 . . . . 73 . Volleys Fired 472 | 2 29 53 72 26 8 5 18 . 4 19 4 15 29 33 11 62 12 10 15 45 Largest 4 | 2 2 2 2 3 2 3 3 . 3 3 1 3 3 3 3 4 4 4 4 4 Hottest 242 | 80 90 68 86 103 88 91 118 . 118 150 90 120 190 190 200 242 177 184 184 181 Shots Fired 1157 | 4 58 105 133 77 9 13 36 . 12 35 4 37 37 81 19 215 38 38 59 147 Gun 934 | 4 58 104 72 77 9 13 27 . 12 21 . 31 12 54 13 162 36 38 47 144 Cannon 182 | . . . 52 . . . . . . 14 4 . 11 27 6 53 . . 12 3 Launcher 41 | . . 1 9 . . . 9 . . . . 6 14 . . . 2 . . . Special . | . . . . . . . . . . . . . . . . . . . . . Kinetic 721 | . 10 52 63 52 3 13 18 . 8 21 . 27 13 59 9 154 26 30 57 106 Thermal 184 | . 2 . . . . . . . . 14 4 . 10 22 10 61 10 8 2 41 Explosive 2 | . . 1 1 . . . . . . . . . . . . . . . . . Electromagnetic 250 | 4 46 52 69 25 6 . 18 . 4 . . 10 14 . . . 2 . . . Robot Hit Streak 26 | 1 7 10 11 26 6 8 5 . 5 15 3 9 15 14 9 21 9 13 23 11 Robot Miss Streak 9 | 1 4 4 5 9 3 4 5 . 3 2 . 2 3 3 1 3 3 2 2 4 Penetration Max 2 | . . . . . . . . . . . . . 1 1 . 2 . . 1 1 Secondary Targets 18 | . 2 2 . 4 . . 2 . . 1 . . . . 1 2 1 . . 3 Max Gunslinging Chain 1 | . 1 1 . 1 . . 1 . . 1 . . . . 1 1 1 . . 1 Shots Hit Robots 781 | 2 35 63 90 59 7 11 24 . 10 25 1 26 11 49 21 153 22 28 36 108 Core Hits 412 | 2 19 35 64 51 4 5 26 . 11 7 1 10 13 19 8 54 11 12 20 40 Critical Kills 16 | . . . 2 . . 1 . . . 1 . . . . . 5 1 . 1 5 Critical Parts Destroyed 25 | . . . . . . . . . . . . 1 . 4 . 7 . 1 4 8 Critical Strikes 60 | . . 2 4 . . 1 1 . . 1 . 1 . 4 . 20 1 3 6 16 Burn 3 | . . . . . . . . . . . . . . . . . . . . 3 Destroy 48 | . . . 2 . . 1 . . . 1 . 1 . 4 . 18 1 3 5 12 Blast 3 | . . . . . . . . . . . . . . . . 2 . . 1 . Corrupt 5 | . . 2 2 . . . 1 . . . . . . . . . . . . . Smash 1 | . . . . . . . . . . . . . . . . . . . . 1 Melee Attacks 79 | . . . . . 13 15 2 . . 11 . . . 2 21 . . . . 15 Impact 48 | . . . . . 13 15 2 . . 3 . . . . . . . . . 15 Slashing 31 | . . . . . . . . . . 8 . . . 2 21 . . . . . Piercing . | . . . . . . . . . . . . . . . . . . . . . Sneak Attacks 11 | . . . . . 2 . . . . 2 . . . . 3 . . . . 4 Combat Hostiles . | . . . . . . . . . . . . . . . . . . . . . Follow-up Attacks . | . . . . . . . . . . . . . . . . . . . . . Damage Inflicted 22758 | 27 555 1253 2911 1178 266 373 847 . 193 978 36 564 822 1272 957 4486 537 703 1237 3563 Guns 14802 | 27 518 957 760 1058 141 174 411 . 193 487 . 459 253 658 215 3226 508 703 922 3132 Cannons 3599 | . . . 1046 . . . . . . 224 36 . 78 614 38 1248 . . 315 . Explosions 2619 | . 37 296 1105 120 . . 436 . . . . 105 491 . . . 29 . . . Melee 1722 | . . . . . 125 199 . . . 263 . . . . 704 . . . . 431 Ramming 16 | . . . . . . . . . . 4 . . . . . 12 . . . . Kinetic 12461 | . 78 432 648 664 82 174 296 . 119 487 . 400 292 807 143 3279 370 564 1191 2435 Thermal 3726 | . 62 34 497 44 . . . . . 224 36 . 39 465 110 1195 138 139 46 697 Explosive 418 | . . 262 156 . . . . . . . . . . . . . . . . . Electromagnetic 4415 | 27 415 525 1610 470 59 . 551 . 74 . . 164 491 . . . 29 . . . Impact 859 | . . . . . 125 199 . . . 104 . . . . . . . . . 431 Slashing 863 | . . . . . . . . . . 159 . . . . 704 . . . . . Piercing . | . . . . . . . . . . . . . . . . . . . . . Highest Corruption 9 | . . . 3 . 3 2 2 2 2 . . . 2 2 2 3 3 3 9 8 Average Corruption 2 | . . . 1 . 1 1 2 2 2 . . . 1 2 2 2 3 3 3 3 Corruption Purged 4 | . . . . . 4 . . . . . . . . . . . . . . . Effects 95 | . . . 2 . 11 4 11 . 5 . . . 4 6 . 27 2 4 10 9 Message Errors 23 | . . . . . 1 1 4 . 2 . . . 2 2 . 5 1 . 3 2 Matter Fused 12 | . . . . . 1 . . . . . . . . . . 2 . 2 4 3 Heat Flow Errors 19 | . . . . . 1 . 3 . 2 . . . 1 3 . 6 1 1 1 . Energy Discharges 17 | . . . . . 3 . 4 . . . . . . 1 . 3 . 1 1 4 Data Loss (minor) 20 | . . . 2 . 4 3 . . 1 . . . 1 . . 9 . . . . Weapon Failures 4 | . . . . . 1 . . . . . . . . . . 2 . . 1 . Overload Shots . | . . . . . . . . . . . . . . . . . . . . . Overflow Damage 1044 | . . 80 89 . 37 178 . . . 105 . . . . 206 5 . . . 344 Projectiles 78 | . . . 52 . . . . . . 21 . . . . . 5 . . . . Explosions 117 | . . 80 37 . . . . . . . . . . . . . . . . . Melee 849 | . . . . . 37 178 . . . 84 . . . . 206 . . . . 344 Knockbacks 3 | . . . . . . . . . . . . . 1 1 . . . . . 1 Impact 1 | . . . . . . . . . . . . . . . . . . . . 1 Kinetic 2 | . . . . . . . . . . . . . 1 1 . . . . . . Secondary . | . . . . . . . . . . . . . . . . . . . . . Self-Inflicted Damage 369 | . 38 112 162 42 . . 15 . . . . . . . . . . . . . Shots 11 | . 1 1 6 2 . . 1 . . . . . . . . . . . . . Rammed 3 | . . . . . . . . . . 1 . . . . . 2 . . . . Targets Rammed 3 | . . . . . . . . . . 1 . . . . . 2 . . . . Kicked . | . . . . . . . . . . . . . . . . . . . . . Crushed . | . . . . . . . . . . . . . . . . . . . . . Highest Temperature 414 | 18 84 16 183 115 145 266 275 . 318 146 92 . 256 242 22 414 226 332 359 346 Average Temperature 98 | 12 22 10 64 41 32 135 102 . 146 52 35 . 70 56 6 147 50 162 212 84 Received Heat Transfer 3193 | . 135 141 720 393 9 . 60 . . 18 . 45 25 337 . 305 9 63 305 628 Effects 10 | . . . . . . . . . 2 . . . . . . 5 . 1 2 . Shutdowns 2 | . . . . . . . . . . . . . . . . 2 . . . . Energy Bleed 3 | . . . . . . . . . . . . . . . . . . 1 2 . Interference 4 | . . . . . . . . . 2 . . . . . . 2 . . . . Short Circuit 1 | . . . . . . . . . . . . . . . . 1 . . . . Siege Activations 9 | . . . . . . . . . . . . . . . . . 1 1 1 6 Total Turns 169 | . . . . . . . . . . . . . . . . . 3 13 53 100 Longest Duration 53 | . . . . . . . . . . . . . . . . . 3 13 53 29 Robots Corrupted 3 | . . . 1 . . . 1 . . . . 1 . . . . . . . . Combat Hostiles 3 | . . . 1 . . . 1 . . . . 1 . . . . . . . . Parts Fried 15 | . 2 . 5 . 1 . . . . . . 1 . . . . . . . 6 Impact Corruptions 15 | . . . . . 1 4 . . . 2 . . . . . . . . . 8 Robots Melted . | . . . . . . . . . . . . . . . . . . . . . Combat Hostiles . | . . . . . . . . . . . . . . . . . . . . . Parts Melted 4 | . . . . 1 . . . . . . . . . . 1 1 . . . 1 Heat Transferred 4938 | . 74 50 600 100 . . . . . 150 25 . 25 300 136 1776 222 222 74 1184 Parts Sabotaged . | . . . . . . . . . . . . . . . . . . . . . Parts Stolen . | . . . . . . . . . . . . . . . . . . . . . Parts Stripped . | . . . . . . . . . . . . . . . . . . . . . Power Chain Reactions 10 | . 1 1 5 1 . . . . . . . . 2 . . . . . . . Missiles Intercepted . | . . . . . . . . . . . . . . . . . . . . . Alert | -11 -10 -9 -8 -7 -6 -6 -6 -6 -5 -5 -5 -5 -5 -4 -4 -4 -4 -4 -4 -3 ------- Run | Scr Mat Mat Mat Fac Fac Low Low Dat Pro Fac Upp Upp War Pro Fac Ext Cet Arc Hub Res Peak Influence 699 | 10 234 290 699 447 193 . . . . 448 . . . . 144 307 242 267 187 271 Initial 266 | . 6 35 79 266 144 . . . . . . . . . 6 1 50 96 93 97 Average 161 | 7 103 138 326 302 69 . . . . 230 . . . . 42 108 191 235 158 115 Maximum Alert Level 2 | . 1 1 2 2 . . . . . 2 . . . . . 1 1 1 . 1 Low Security (%) 70 | 100 92 68 43 . 100 . . . . 45 . . . . 100 87 40 24 100 92 Level 1 20 | . 7 31 15 84 . . . . . 26 . . . . . 12 59 76 . 7 Level 2 8 | . . . 41 14 . . . . . 27 . . . . . . . . . . Level 3 . | . . . . . . . . . . . . . . . . . . . . . Level 4 . | . . . . . . . . . . . . . . . . . . . . . Level 5 . | . . . . . . . . . . . . . . . . . . . . . High Security . | . . . . . . . . . . . . . . . . . . . . . Max Security . | . . . . . . . . . . . . . . . . . . . . . Squads Dispatched 29 | . . 2 4 6 3 . . . . 1 . . . . 2 1 . . 3 7 Investigation 5 | . . . . 2 1 . . . . . . . . . . . . . 1 1 Extermination 8 | . . . . 1 1 . . . . 1 . . . . 1 . . . 1 3 Reinforcement 14 | . . 2 3 3 1 . . . . . . . . . 1 1 . . 1 2 Assault 1 | . . . 1 . . . . . . . . . . . . . . . . . Garrison 1 | . . . . . . . . . . . . . . . . . . . . 1 Intercept . | . . . . . . . . . . . . . . . . . . . . . Construction Impeded 1 | . . . 1 . . . . . . . . . . . . . . . . . Haulers Reinforced 1 | . . . . 1 . . . . . . . . . . . . . . . . Active Scanning Responses . | . . . . . . . . . . . . . . . . . . . . . Cargo Convoy Interrupts . | . . . . . . . . . . . . . . . . . . . . . Stealth | -11 -10 -9 -8 -7 -6 -6 -6 -6 -5 -5 -5 -5 -5 -4 -4 -4 -4 -4 -4 -3 --------- Run | Scr Mat Mat Mat Fac Fac Low Low Dat Pro Fac Upp Upp War Pro Fac Ext Cet Arc Hub Res Distress Signals 14 | . . 3 3 . . . . . . 2 . . . . 1 2 1 . . 2 Communications Jammed . | . . . . . . . . . . . . . . . . . . . . . Distress Signals . | . . . . . . . . . . . . . . . . . . . . . Times Spotted 265 | . 17 29 39 17 6 1 10 . 2 7 . 5 39 9 9 25 9 4 9 28 Peak Tracking Total 11 | . 4 5 5 6 2 1 5 . 2 4 . 4 11 4 4 6 5 2 6 9 Tactical Retreats 19 | . 3 3 5 . 1 . 1 . . 1 . 1 1 . 1 . . . 1 1 Traps | -11 -10 -9 -8 -7 -6 -6 -6 -6 -5 -5 -5 -5 -5 -4 -4 -4 -4 -4 -4 -3 ------- Run | Scr Mat Mat Mat Fac Fac Low Low Dat Pro Fac Upp Upp War Pro Fac Ext Cet Arc Hub Res Traps Triggered 12 | . . . 1 1 2 . . . . . . . 7 . 1 . . . . . Indirectly 7 | . . . . . . . . . . . . . 7 . . . . . . . Trap Hack Attempts . | . . . . . . . . . . . . . . . . . . . . . Triggered . | . . . . . . . . . . . . . . . . . . . . . Disarmed . | . . . . . . . . . . . . . . . . . . . . . Reprogrammed . | . . . . . . . . . . . . . . . . . . . . . Reused . | . . . . . . . . . . . . . . . . . . . . . Traps Extracted . | . . . . . . . . . . . . . . . . . . . . . Installed . | . . . . . . . . . . . . . . . . . . . . . Triggered 8 | . . . 1 . . . . . . . . 3 4 . . . . . . . Machines | -11 -10 -9 -8 -7 -6 -6 -6 -6 -5 -5 -5 -5 -5 -4 -4 -4 -4 -4 -4 -3 ---------- Run | Scr Mat Mat Mat Fac Fac Low Low Dat Pro Fac Upp Upp War Pro Fac Ext Cet Arc Hub Res Machines Disabled 23 | . . 3 6 2 2 . . . . 1 . . . . 2 1 1 3 . 2 Max in Single Turn 2 | . . 2 2 2 1 . . . . 1 . . . . 1 . . 1 . 1 Garrison Access 2 | . . . 1 . . . . . . 1 . . . . . . . . . . Machines Sabotaged . | . . . . . . . . . . . . . . . . . . . . . Garrisons Compromised . | . . . . . . . . . . . . . . . . . . . . . Overloaded Fab Kills . | . . . . . . . . . . . . . . . . . . . . . Fab Network Shutdowns 1 | . . . . . . . . . . 1 . . . . . . . . . . Hacking | -11 -10 -9 -8 -7 -6 -6 -6 -6 -5 -5 -5 -5 -5 -4 -4 -4 -4 -4 -4 -3 --------- Run | Scr Mat Mat Mat Fac Fac Low Low Dat Pro Fac Upp Upp War Pro Fac Ext Cet Arc Hub Res Machines Accessed 51 | . 8 7 2 1 7 1 . 4 . 7 . . . . 4 4 . . 1 5 Terminals 37 | . 7 6 1 . 4 1 . . . 5 . . . . 4 3 . . 1 5 Fabricators 2 | . . . . . 1 . . . . 1 . . . . . . . . . . Repair Stations 2 | . . . . . 1 . . . . . . . . . . 1 . . . . Recycling Units 1 | . 1 . . . . . . . . . . . . . . . . . . . Scanalyzers 3 | . . 1 1 . 1 . . . . . . . . . . . . . . . Garrison Access 2 | . . . . 1 . . . . . 1 . . . . . . . . . . Total Hacks 183 | . 26 29 9 3 15 1 . 28 . 26 . . . . 15 8 . . 1 22 Successful 116 | . 13 20 8 . 8 1 . 28 . 17 . . . . 10 4 . . . 7 Failed 67 | . 13 9 1 3 7 . . . . 9 . . . . 5 4 . . 1 15 Catastrophic 17 | . 1 1 . 1 3 . . . . 3 . . . . 1 2 . . 1 4 Database Lockouts . | . . . . . . . . . . . . . . . . . . . . . Manual 83 | . 13 17 1 . 7 . . . . 18 . . 1 . 12 4 . . 1 9 Terminals 128 | . 25 27 2 . 7 1 . . . 23 . . . . 15 5 . . 1 22 Fabricators 3 | . . . . . 1 . . . . 2 . . . . . . . . . . Repair Stations 6 | . . . . . 3 . . . . . . . . . . 3 . . . . Recycling Units 1 | . 1 . . . . . . . . . . . . . . . . . . . Scanalyzers 13 | . . 2 7 . 4 . . . . . . . . . . . . . . . Garrison Access 4 | . . . . 3 . . . . . 1 . . . . . . . . . . Terminal Hacks 71 | . 9 12 1 . 1 1 . 28 . 7 . . . . 7 1 . . . 4 Record 12 | . . . . . . 1 . 11 . . . . . . . . . . . . Part Schematic 8 | . 1 . . . . . . 7 . . . . . . . . . . . . Robot Schematic 7 | . . . . . . . . 7 . . . . . . . . . . . . Robot Analysis 1 | . . 1 . . . . . . . . . . . . . . . . . . Prototype ID Bank 11 | . 3 4 . . . . . 3 . . . . . . 1 . . . . . Branch Access Points 5 | . . 1 . . 1 . . . . 1 . . . . 1 . . . . 1 Terminal Index 1 | . . 1 . . . . . . . . . . . . . . . . . . Alert Level 3 | . . 1 1 . . . . . . . . . . . 1 . . . . . Unreport Threat 4 | . . 1 . . . . . . . 1 . . . . 2 . . . . . Locate Traps 9 | . 1 1 . . . . . . . 2 . . . . 2 1 . . . 2 Maintenance Status 1 | . 1 . . . . . . . . . . . . . . . . . . . Transport Status 1 | . . . . . . . . . . 1 . . . . . . . . . . Hauler Manifests 2 | . 1 . . . . . . . . 1 . . . . . . . . . . Zone Layout 6 | . 2 2 . . . . . . . 1 . . . . . . . . . 1 Fabricator Hacks 2 | . . . . . . . . . . 2 . . . . . . . . . . Load Schematic 1 | . . . . . . . . . . 1 . . . . . . . . . . Build 1 | . . . . . . . . . . 1 . . . . . . . . . . Repair Station Hacks 4 | . . . . . 2 . . . . . . . . . . 2 . . . . Scan Component 2 | . . . . . 1 . . . . . . . . . . 1 . . . . Repair 2 | . . . . . 1 . . . . . . . . . . 1 . . . . Recycling Unit Hacks . | . . . . . . . . . . . . . . . . . . . . . Scanalyzer 13 | . . 2 7 . 4 . . . . . . . . . . . . . . . Insert Component 7 | . . 1 4 . 2 . . . . . . . . . . . . . . . Analyze 6 | . . 1 3 . 2 . . . . . . . . . . . . . . . Garrison Access Hacks 1 | . . . . . . . . . . 1 . . . . . . . . . . Seal Access 1 | . . . . . . . . . . 1 . . . . . . . . . . Unauthorized Hacks 25 | . 4 6 . . 1 . . . . 7 . . . . 3 1 . . . 3 Terminals 24 | . 3 6 . . 1 . . . . 7 . . . . 3 1 . . . 3 Track 13 | . 1 3 . . 1 . . . . 4 . . . . 2 . . . . 2 Botnet 8 | . 1 2 . . . . . . . 2 . . . . 1 1 . . . 1 Operators 3 | . 1 1 . . . . . . . 1 . . . . . . . . . . Fabricators . | . . . . . . . . . . . . . . . . . . . . . Repair Stations . | . . . . . . . . . . . . . . . . . . . . . Recycling Units 1 | . 1 . . . . . . . . . . . . . . . . . . . Mask 1 | . 1 . . . . . . . . . . . . . . . . . . . Scanalyzers . | . . . . . . . . . . . . . . . . . . . . . Garrison Access . | . . . . . . . . . . . . . . . . . . . . . Data Cores Recovered 2 | . 1 . . . . . . . . . . . . . . 1 . . . . Used 1 | . 1 . . . . . . . . . . . . . . . . . . . Hacking Detections 42 | . 7 5 2 1 7 1 . . . 5 . . . . 4 4 . . 1 5 Full Trace Events 3 | . . . . 1 1 . . . . . . . . . . . . . . 1 Feedback Events 1 | . . . . . 1 . . . . . . . . . . . . . . . Corruption 1 | . . . . . 1 . . . . . . . . . . . . . . . Feedback Blocked . | . . . . . . . . . . . . . . . . . . . . . Robot Schematics Acquired 7 | . . . . . . . . 7 . . . . . . . . . . . . Robots Built . | . . . . . . . . . . . . . . . . . . . . . Matter . | . . . . . . . . . . . . . . . . . . . . . Time . | . . . . . . . . . . . . . . . . . . . . . Total Robot Build Rating . | . . . . . . . . . . . . . . . . . . . . . Part Schematics Acquired 13 | . 1 1 2 . 2 . . 7 . . . . . . . . . . . . Parts Built 1 | . . . . . . . . . . 1 . . . . . . . . . . Matter 384 | . . . . . . . . . . 384 . . . . . . . . . . Time 204 | . . . . . . . . . . 204 . . . . . . . . . . Total Part Build Rating 8 | . . . . . . . . . . 8 . . . . . . . . . . Parts Repaired 2 | . . . . . 1 . . . . . . . . . . 1 . . . . Time 78 | . . . . . 22 . . . . . . . . . . 56 . . . . Parts Recycled . | . . . . . . . . . . . . . . . . . . . . . Recycled Matter . | . . . . . . . . . . . . . . . . . . . . . Retrieved Matter . | . . . . . . . . . . . . . . . . . . . . . Retrieved Components . | . . . . . . . . . . . . . . . . . . . . . Parts Scanalyzed 5 | . . 1 2 . 2 . . . . . . . . . . . . . . . Part Schematics Acquired 5 | . . 1 2 . 2 . . . . . . . . . . . . . . . Parts Damaged . | . . . . . . . . . . . . . . . . . . . . . Bothacking | -11 -10 -9 -8 -7 -6 -6 -6 -6 -5 -5 -5 -5 -5 -4 -4 -4 -4 -4 -4 -3 ------------ Run | Scr Mat Mat Mat Fac Fac Low Low Dat Pro Fac Upp Upp War Pro Fac Ext Cet Arc Hub Res Used RIF Installer . | . . . . . . . . . . . . . . . . . . . . . Robots Hacked . | . . . . . . . . . . . . . . . . . . . . . Non-combat . | . . . . . . . . . . . . . . . . . . . . . Combat . | . . . . . . . . . . . . . . . . . . . . . Robot Hacks Applied . | . . . . . . . . . . . . . . . . . . . . . Relay Couplers Released 2 | . . . 2 . . . . . . . . . . . . . . . . . Machine Destruction 2 | . . . 2 . . . . . . . . . . . . . . . . . Robots Rewired 19 | . . . . . . . . . . . . . 3 . . 16 . . . . Allies Hacked . | . . . . . . . . . . . . . . . . . . . . . Hacks Repelled . | . . . . . . . . . . . . . . . . . . . . . Allies | -11 -10 -9 -8 -7 -6 -6 -6 -6 -5 -5 -5 -5 -5 -4 -4 -4 -4 -4 -4 -3 -------- Run | Scr Mat Mat Mat Fac Fac Low Low Dat Pro Fac Upp Upp War Pro Fac Ext Cet Arc Hub Res Total Allies 23 | . . . . . . . . . . . . . 3 . . 20 . . . . Largest Group 10 | . . . . . . . . . . . . . 3 1 . 10 4 2 2 . Highest-Rated Group 478 | . . . . . . . . . . . . . 163 65 . 478 185 88 88 . Highest-Rated Ally 159 | . . . . . . . . . . . . . 65 65 . 159 49 49 49 . Total Orders 2 | . . . . . . . . . . . . . 2 . . . . . . . STAY 1 | . . . . . . . . . . . . . 1 . . . . . . . FOLLOW 1 | . . . . . . . . . . . . . 1 . . . . . . . Ally Attacks 176 | . . . . . . . . . . . . . 8 . . 89 51 24 4 . Total Damage 4410 | . . . . . . . . . . . . . 210 . . 2882 843 439 36 . Kills 20 | . . . . . . . . . . . . . 1 . . 10 6 3 . . Allies Corrupted . | . . . . . . . . . . . . . . . . . . . . . Allies Melted . | . . . . . . . . . . . . . . . . . . . . . Intel | -11 -10 -9 -8 -7 -6 -6 -6 -6 -5 -5 -5 -5 -5 -4 -4 -4 -4 -4 -4 -3 ------- Run | Scr Mat Mat Mat Fac Fac Low Low Dat Pro Fac Upp Upp War Pro Fac Ext Cet Arc Hub Res Robot Analysis Total 1 | . . 1 . . . . . . . . . . . . . . . . . . Derelict Logs Recovered 9 | . . . . . . 2 . . 2 . 2 2 . 1 . . . . . . Drone Launches . | . . . . . . . . . . . . . . . . . . . . . Drone Recoveries . | . . . . . . . . . . . . . . . . . . . . . Decoded 0b10 Intel 99 | . . . . . . . . . . . . . . . 19 34 5 3 8 30 Traps 6 | . . . . . . . . . . . . . . . 1 3 . . . 2 Emergency Access 14 | . . . . . . . . . . . . . . . 3 4 . . 2 5 Items 56 | . . . . . . . . . . . . . . . 12 23 . . 5 16 Machines 11 | . . . . . . . . . . . . . . . 1 3 5 1 . 1 Patrols 4 | . . . . . . . . . . . . . . . . . . . . 4 Guards 5 | . . . . . . . . . . . . . . . 2 . . . 1 2 Exits 3 | . . . . . . . . . . . . . . . . 1 . 2 . . Exploration | -11 -10 -9 -8 -7 -6 -6 -6 -6 -5 -5 -5 -5 -5 -4 -4 -4 -4 -4 -4 -3 ------------- Run | Scr Mat Mat Mat Fac Fac Low Low Dat Pro Fac Upp Upp War Pro Fac Ext Cet Arc Hub Res Turns Passed 17237 | 27 892 1265 1209 870 1226 1401 1088 154 733 1064 523 652 1035 983 690 1657 219 175 269 1105 Spaces Moved 9064 | 15 523 710 579 492 703 784 519 92 409 625 362 416 575 483 374 713 96 78 81 435 Core . | . . . . . . . . . . . . . . . . . . . . . Treads 1332 | . . 1 . . . . . . . . . . . . . 641 96 78 81 435 Legs 31 | 15 16 . . . . . . . . . . . . . . . . . . . Wheels 7701 | . 507 709 579 492 703 784 519 92 409 625 362 416 575 483 374 72 . . . . Hover . | . . . . . . . . . . . . . . . . . . . . . Flight . | . . . . . . . . . . . . . . . . . . . . . Fastest Speed 100 | 120 100 135 135 150 150 150 150 165 165 135 135 135 135 123 123 123 150 155 156 159 Average Speed 145 | 120 131 135 146 150 151 156 162 165 165 135 135 135 135 135 127 152 162 155 158 160 Slowest Speed 560 | 120 155 560 205 150 165 165 165 165 165 135 135 135 135 138 138 258 253 156 159 162 Overloaded Moves . | . . . . . . . . . . . . . . . . . . . . . Propulsion Burnouts . | . . . . . . . . . . . . . . . . . . . . . Robots Hopped . | . . . . . . . . . . . . . . . . . . . . . Cave-ins Triggered . | . . . . . . . . . . . . . . . . . . . . . Exploration Rate (%) 47 | 3 86 60 42 14 20 82 68 69 63 21 55 56 56 63 11 80 49 71 8 13 Regions Visited 20 Branch Regions 12 Pre-discovered Areas 3 | . . . . . . 1 . 1 . . . 1 . . . . . . . . Known Exits Taken 16 | . . . . 1 1 1 1 1 1 1 1 1 1 1 1 1 1 1 1 . Unknown Exits Taken 4 | 1 1 1 1 . . . . . . . . . . . . . . . . . Scrap Searched 16 | . . . . . . 3 1 . 1 . 4 3 . 4 . . . . . . Spaces Dug 71 | . . . . . 9 12 2 . . 12 3 . . 9 13 . . . . 11 Terrain Destroyed 192 | . 4 31 21 4 9 12 2 . . 14 3 2 1 23 15 23 1 4 10 13 Melee 50 | . . . . . 9 12 2 . . 6 . . . 2 9 . . . . 10 Projectile 79 | . . . . . . . . . . 8 3 1 1 20 6 22 1 4 10 3 AOE 60 | . 4 31 21 4 . . . . . . . . . . . . . . . . Terrain Rammed . | . . . . . . . . . . . . . . . . . . . . . Walls Destroyed . | . . . . . . . . . . . . . . . . . . . . . Machines Disabled . | . . . . . . . . . . . . . . . . . . . . . Actions | -11 -10 -9 -8 -7 -6 -6 -6 -6 -5 -5 -5 -5 -5 -4 -4 -4 -4 -4 -4 -3 --------- Run | Scr Mat Mat Mat Fac Fac Low Low Dat Pro Fac Upp Upp War Pro Fac Ext Cet Arc Hub Res Total 12031 | 19 672 912 818 576 831 914 719 93 460 792 390 473 797 737 531 1152 134 108 178 725 Wait 1593 | . 76 103 89 20 53 92 157 . 43 84 13 26 136 181 92 185 15 12 63 153 Move 9044 | 14 522 709 578 491 702 783 518 91 408 624 361 415 574 482 373 712 95 77 80 435 Hop . | . . . . . . . . . . . . . . . . . . . . . Pick Up 168 | 2 21 18 20 10 13 . 1 . 1 10 3 2 5 6 11 22 3 2 2 16 Fast Attach 55 | 1 2 . 8 2 2 3 . . 1 6 . 1 5 2 2 12 2 2 . 4 Attach 85 | . 5 8 10 3 4 1 1 . . 3 1 2 2 10 5 13 2 . 3 12 Detach 14 | . . . 1 . . . . . . 1 . 1 1 . 1 4 1 . . 4 Swap 229 | . 4 8 13 11 23 13 22 2 2 17 5 9 4 17 13 23 1 1 13 28 Drop 166 | . 13 13 27 13 13 2 . . 1 16 3 2 10 4 2 25 3 4 2 13 Fire 472 | 2 29 53 72 26 8 5 18 . 4 19 4 15 29 33 11 62 12 10 15 45 Melee 79 | . . . . . 13 15 2 . . 11 . . . 2 21 . . . . 15 Ram . | . . . . . . . . . . . . . . . . . . . . . Kick . | . . . . . . . . . . . . . . . . . . . . . Crush 3 | . . . . . . . . . . 1 . . . . . 2 . . . . Escape Stasis . | . . . . . . . . . . . . . . . . . . . . . Rewire 123 | . . . . . . . . . . . . . 31 . . 92 . . . . Trap . | . . . . . . . . . . . . . . . . . . . . . Miscellaneous . | . . . . . . . . . . . . . . . . . . . . . Route ------- -11/Scrapyard -10/Materials (discovered 4 exits: *Mat x3 / [*Min]) -9/Materials (discovered 5 exits: *Mat x3 / *Min x2) -8/Materials -7/Factory -6/Factory (discovered 2 exits: *Low x2) -6/Lower Caves -6/Lower Caves (discovered 2 exits: *Fac / *Dat) -6/Data Miner -5/Proximity Caves -5/Factory (discovered 2 exits: *Upp x2) -5/Upper Caves -5/Upper Caves (discovered 2 exits: *Fac / *War) -5/Warlord -4/Proximity Caves -4/Factory (discovered 4 exits: Upp x2 / *Ext x2) -4/Extension (discovered 3 exits: *Res x2 / *Cet) -4/Cetus -4/Archives (discovered 3 exits: *Res / *Hub x2) -4/Hub_04(d) -3/Research (discovered 5 exits: [Res x2] / Arm / Qua x2) History --------- Turn | Location | Event 1 | -11/Scrapyard | Discovered new exit (range 3) 28 | -11/Scrapyard | Entered Materials 225 | -10/Materials | Discovered new exit (range 10) 316 | -10/Materials | Build established: Mutant 359 | -10/Materials | Discovered new exit (range 9) 616 | -10/Materials | Discovered new exit (range 10) 890 | -10/Materials | Discovered new exit (range 9) 920 | -10/Materials | Entered another Materials area 920 | -9/Materials | Evolved 2 slots: Propulsion x1, Utility x1 1257 | -9/Materials | Identified exit to Mines 1651 | -9/Materials | Discovered new exit (range 13) 1910 | -9/Materials | Discovered new exit (range 9) 2130 | -9/Materials | Discovered new exit (range 14) 2185 | -9/Materials | Entered another Materials area 2185 | -8/Materials | Evolved 2 slots: Propulsion x1, Utility x1 2635 | -8/Materials | Build established: Scavenger-Mutant 3091 | -8/Materials | Build established: Mutant 3327 | -8/Materials | Discovered new exit (range 16) 3394 | -8/Materials | Entered Factory 3394 | -7/Factory | Evolved 2 slots: Utility x1, Weapon x1 3698 | -7/Factory | Build established: Scavenger-Tank 4209 | -7/Factory | Discovered new exit (range 16) 4239 | -7/Factory | Found Powered Armor 4260 | -7/Factory | Identified exit to Factory 4264 | -7/Factory | Entered another Factory area 4264 | -6/Factory | Evolved 2 slots: Utility x2 4362 | -6/Factory | Build established: Scavenger-Skirmisher 4732 | -6/Factory | Identified exit to Lower Caves 4852 | -6/Factory | Repaired System Backup Module? 5490 | -6/Factory | Entered Lower Caves 5779 | -6/Lower Caves | Build established: Mutant 5830 | -6/Lower Caves | Found Alien Artifact 5830 | -6/Lower Caves | Identified Core Expander 5830 | -6/Lower Caves | Installed Core Expander, added new Propulsion slot 6121 | -6/Lower Caves | Build established: Assassin 6453 | -6/Lower Caves | Learned 4 Factory zone layouts 6553 | -6/Lower Caves | Spotted B-75 Beast 6834 | -6/Lower Caves | Discovered new exit (range 5) 6843 | -6/Lower Caves | Identified exit to Lower Caves 6891 | -6/Lower Caves | Entered another Lower Caves area 6929 | -6/Lower Caves | Discovered new exit (range 5) 6936 | -6/Lower Caves | Identified exit to Factory 7160 | -6/Lower Caves | Attracted the attention of an 0b10 checkpoint 7277 | -6/Lower Caves | Encountered a Warlord checkpoint 7876 | -6/Lower Caves | Discovered new exit (range 12) 7898 | -6/Lower Caves | Identified exit to Data Miner 7979 | -6/Lower Caves | Entered Data Miner 7979 | -6/Data Miner | Discovered new exit (range 6) 7986 | -6/Data Miner | Identified exit to Proximity Caves 8012 | -6/Data Miner | Met Data Miner 8042 | -6/Data Miner | Learned location of Section 7 (-3) 8042 | -6/Data Miner | Acquired the access code to Warlord's prototype stash 8090 | -6/Data Miner | Received God Mode back door access code from Data Miner 8133 | -6/Data Miner | Entered Proximity Caves 8359 | -5/Proximity Caves | Learned location of 1 exit from Upper Caves 8465 | -5/Proximity Caves | Build established: Skirmisher 8866 | -5/Proximity Caves | Entered Factory 8866 | -5/Factory | Evolved 2 slots: Propulsion x1, Utility x1 8890 | -5/Factory | Identified exit to Upper Caves 8969 | -5/Factory | Local fabrication network quarantined 9120 | -5/Factory | Fabricated Exp. Sensor Array? 9275 | -5/Factory | Build established: Assassin 9930 | -5/Factory | Entered Upper Caves 9931 | -5/Upper Caves | Identified exit to Upper Caves 9957 | -5/Upper Caves | Build established: Mutant 10205 | -5/Upper Caves | Learned 4 Factory zone layouts 10237 | -5/Upper Caves | Learned 4 Factory zone layouts 10309 | -5/Upper Caves | Encountered a Warlord checkpoint 10453 | -5/Upper Caves | Entered another Upper Caves area 10455 | -5/Upper Caves | Attracted the attention of an 0b10 checkpoint 10526 | -5/Upper Caves | Discovered new exit (range 7) 10895 | -5/Upper Caves | Learned Factory non-interactive machine intel 10910 | -5/Upper Caves | Learned location of Armory (-3) 11086 | -5/Upper Caves | Discovered new exit (range 13) 11103 | -5/Upper Caves | Identified exit to Warlord 11105 | -5/Upper Caves | Entered Warlord 11177 | -5/Warlord | Discovered new exit (range 9) 11626 | -5/Warlord | Met Warlord 11646 | -5/Warlord | Warlord's base attacked by MAIN.C 11648 | -5/Warlord | Opened Warlord's prototype stash 11658 | -5/Warlord | Found Prototype Device 11658 | -5/Warlord | Identified Exp. Cloaking Device 11674 | -5/Warlord | Found Prototype Processor 11679 | -5/Warlord | Found Prototype Hackware 11996 | -5/Warlord | Warlord forces counterattacked 12018 | -5/Warlord | Spotted Executioner 12021 | -5/Warlord | Spotted Striker 12130 | -5/Warlord | Identified exit to Proximity Caves 12140 | -5/Warlord | Entered Proximity Caves 12140 | -4/Proximity Caves | Accompanied by 1 ally 12257 | -4/Proximity Caves | Identified Spectral Analyzer 12279 | -4/Proximity Caves | Identified Ghost Barrier 12697 | -4/Proximity Caves | Build established: Scavenger-Mutant 13012 | -4/Proximity Caves | Lost 6 parts (4n1u1w) 13033 | -4/Proximity Caves | Learned Research stockpile data 13113 | -4/Proximity Caves | Discovered new exit (range 9) 13119 | -4/Proximity Caves | Attracted the attention of an 0b10 checkpoint 13121 | -4/Proximity Caves | Identified exit to Factory 13123 | -4/Proximity Caves | Entered Factory 13123 | -4/Factory | Evolved 2 slots: Utility x1, Weapon x1 13125 | -4/Factory | Loaded intel: 202 non-interactive machine locations 13132 | -4/Factory | Identified exit to Upper Caves 13132 | -4/Factory | Identified exit to Extension 13813 | -4/Factory | Entered Extension 13882 | -4/Extension | Rescued A7 14025 | -4/Extension | Lost 5 parts (2n2u1w) 14150 | -4/Extension | Rescued a captive Derelict 14270 | -4/Extension | Repaired Arm. Medium Treads 14514 | -4/Extension | Build established: Commander-Skirmisher 14674 | -4/Extension | Spotted B-86 Titan 14695 | -4/Extension | Identified exit to Research 14698 | -4/Extension | Destroyed B-86 Titan 14703 | -4/Extension | Spotted B-86 Titan 14800 | -4/Extension | Destroyed B-86 Titan 14814 | -4/Extension | Extracted ID and sensor layout for unrecognized location from A7's data core 15263 | -4/Extension | Disrupted transfer network 15407 | -4/Extension | Rescued a captive Derelict 15408 | -4/Extension | Rescued a captive Derelict 15443 | -4/Extension | Discovered exit to Research (range 10) 15445 | -4/Extension | Discovered new exit (range 6) 15452 | -4/Extension | Identified exit to Cetus 15470 | -4/Extension | Entered Cetus 15470 | -4/Cetus | Accompanied by 4 allies 15488 | -4/Cetus | Spotted Cetus Guard 15488 | -4/Cetus | Spotted Cetus Guard 15489 | -4/Cetus | Spotted Cetus Guard 15491 | -4/Cetus | Allies destroyed Cetus Guard 15499 | -4/Cetus | Destroyed Cetus Guard 15503 | -4/Cetus | Allies destroyed Cetus Guard 15510 | -4/Cetus | Spotted Cetus Guard 15515 | -4/Cetus | Allies destroyed Cetus Guard 15556 | -4/Cetus | Lost 3 parts (2n1w) 15655 | -4/Cetus | Discovered new exit (range 16) 15677 | -4/Cetus | Identified exit to Archives 15689 | -4/Cetus | Entered Archives 15689 | -4/Archives | Accompanied by 2 allies 15773 | -4/Archives | Discovered new exit (range 16) 15777 | -4/Archives | Identified exit to Hub_04(d) 15801 | -4/Archives | Build established: Scavenger-Tank 15864 | -4/Archives | Entered Hub_04(d) 15864 | -4/Hub_04(d) | Accompanied by 2 allies 15884 | -4/Hub_04(d) | Incoming investigation squad redirected 15971 | -4/Hub_04(d) | Discovered exit to Research (range 19) 16133 | -4/Hub_04(d) | Entered Research 16133 | -3/Research | Evolved 2 slots: Utility x2 16272 | -3/Research | Identified exit to Armory 16272 | -3/Research | Identified exit to Quarantine 16412 | -3/Research | Discovered new exit (range 16) 16550 | -3/Research | Discovered new exit (range 20) 16692 | -3/Research | Garrison activated, responded to threat 16906 | -3/Research | Found Unknown Protection 16906 | -3/Research | Identified Powered Armor 17180 | -3/Research | Incoming investigation squad redirected 17238 | -3/Research | Destroyed 7 combat bots 17238 | -3/Research | Self-destructed Last Messages --------------- 17217_ Destroyed Electrolaser. 17221_ Slug penetrates G-67 Veteran. 17222_ Wave Gun destroyed. 17224_ Arm. Medium Treads destroyed. 17224_ Powered Armor destroyed. 17224_ Critical hit (Burn: +50). 17226_ Med. Treads destroyed. 17227_ >> DECODED: Patrol location. 17227_ Centrium Medium Armor Plating destroyed. 17229_ Slug penetrates G-67 Veteran. 17230_ Imp. KE Penetrator destroyed. 17233_ Centrium Heavy Treads destroyed. 17233_ Quantum Reactor destroyed. 17233_ Railgun destroyed. 17233_ Critical hit (Burn: +50). 17236_ Med. Treads destroyed. 17236_ Critical hit (Burn: +50). 17236_ Slug penetrates G-67 Veteran. 17236_ Slug penetrates Wall. 17236_ Med. Treads destroyed. Map ----- +----------------------------------------------------+ | ??????????????????? ????? ????? ? ???## #?# | | ??????????????????? ?? ? #?? ? ! ?### #?# | | ?????????????????????#??? ????#??###????# ##? | | ??????????????????????? ???#?##?#????#?## ##? | | ??????????????????? ??? ?? #??#??????#### #?# | | ??????????????????????? ??#####????#???# #?# | | ????????????????#???#??? ?#####?##??####/##+### | | ??!?????????##???????##??#???#??#?##???# !!] | | ??????????????#??????## ???##??######??# ! = | | ??????????#???????????# #?#???#?##????## !! | | ??????????????????????# #??????##?#?#### ! ! | | ?????????????????????## ###?##?##??############# | | ??????????#???????????# #?######?#?### # | | ??????????????#?#???#?# ####?#??##???# # | | ??????????###########?#R##?##?#?????## # | | ??????????# ### ###?##?###?### # | | ??????????? # #???#??#??## # | | ??????????? """ # "" p############ # | | ??????????#! """ /g " k + # | | ??????????# """ # =%############ # | | ??????????# # g |!# #########+### | | ??????????# ## g ## + | | ??????????# = ## g## "" ######## | | ??????????############ ## "" ###?#??# | | ???????????##????????# ## "T #??#???### | | ???????????????##????# @ ## "" ########## | | ???????????????#?????#%![## "" #] # | | ??????????#????#???#?#!=%## # # | | ?????????????????????#=%=## + # | | ????????????????#???##!%%#####+##### ] + | | ??????????????#?????##[^ ? ?### # | | ??????????????#?????##^ #?# # | | ????????????????#??#?# ^^ ? #?# #### | | ?????????????????????#*%! " ### #??? | | ???????????????#????## ! """ ?? #?##########??? | | ?????????????????????#^ ^^ T" ??##?#???? ?=????? | | ???????????????????#?# """? ?#?????#? ?? ?+?? | | ?????????????????????#g g ""?? #???????????!??? | | ??????????????????????^ ^ ?????????????????!??? | | ?????????????????????? ! ????????????????????? | | ?????????????????????? % R ??????=?????????????? | | ?????????????????????? ??????????????????????? | | ???????????????????????????????????????????????? | | ???????????????????????????????????????????????? | | ???????????????????????????????????????????????? | | ???????????????????????????????????????????????? | | ???????????????????????????????????????????????? | | ???????????????????????????????????????????????? | | ???????????????????????????????????????????????? | | ???????????????????????????????????????????????? | +----------------------------------------------------+ Best States ------------- Heat Dissipation 81 Energy Generation 25 Energy Capacity 900 Matter Stores 550 Matter Capacity 550 Sight Range 16 Robot Scan Range 20 Terrain Scan Range 20 Terrain Scan Density 110 ECM Strength 2 Cloak Strength 4 Armor Coverage 1650 Resistance: TH 10 Resistance: EM 25 Weapon Cycling 15 Phase Shifting 10 Evasion (%) 55 Target Analysis 6 Recoil Reduction 6 Matter Filtering 30 Defensive Hacking 20 Item Schematics ----------------- Huge Storage Unit | -10/Materials | Hacked Hacking Suite | -9/Materials | Scanalyzed Sensor Array | -8/Materials | Scanalyzed Med. Armor Plating | -8/Materials | Scanalyzed F-cell Engine | -6/Factory | Scanalyzed Arm. Wheel | -6/Factory | Scanalyzed Combat Drone Bay | -6/Data Miner | Free Lgt. Regenerative Plating | -6/Data Miner | Free Exp. Cesium-ion Thruster | -6/Data Miner | Free Exp. Sensor Array | -6/Data Miner | Free Exp. Targeting Computer | -6/Data Miner | Free Cloaking Device | -6/Data Miner | Free Plasma Sword | -6/Data Miner | Free Robot Schematics ------------------ S-27 Virus | -6/Data Miner | Free G-50 Soldier | -6/Data Miner | Free G-67 Veteran | -6/Data Miner | Free L-41 Fighter | -6/Data Miner | Free H-66 Slayer | -6/Data Miner | Free I-36 Angel | -6/Data Miner | Free I-47 Archangel | -6/Data Miner | Free Fabricated ------------ Exp. Sensor Array | x1 | -5/Factory Alien Tech Used ----------------- Core Expander Achievements -------------- None Challenges ------------ None Game ------ Seed DisruptionRefineryRefractor Manual? 0 Play Time 05:28:28 Cumulative 1212.4 hours Start 2021.10.01 @ 06:40:29 End 2021.10.03 @ 11:41:59 Sessions 29 Manual Loads 0 Difficulty Rogue Special Mode None Game No. 331 Rogue 331 Adventurer 0 Explorer 0 Win Type - Total 41 Types 25/6/7/3/0/0/0/0/0 Lore% 82 Gallery% 86 Achievement% 73 Wizard Run 0 Options --------- ASCII 0 Keyboard 1 Movement Numpad Keybinds 0 Fullscreen 1 Font 24/Crisp Map View 76x50 Tactical HUD 1 Map Filters NONE Filters NONE Steam 1 RUN: 38871385-30ac-4eb0-89c4-3199b3399952